[Event "Titled Tuesday Blitz August 1 Late 2023"]
[White "Shapiro, Daniel"]
[Black "Tqebuchava, Zurab"]
[WhiteFideId "2001780"]
[BlackFideId "13601113"]
[WhiteElo "2351"]
[BlackElo "2265"]
[Result "1-0"]
[Round "10"]
[TimeControl "180+1"]
[Date "2023.08.01"]
[WhiteClock "0:00:02"]
[BlackClock "0:00:03"]
[Board "104"]

1. d4 {[%clk 0:03:00]}  d6 {[%clk 0:03:00]} 2. e4 {[%clk 0:03:00]}  Nf6 {[%clk 0:03:00]} 3. Nc3 {[%clk 0:03:00]}  Nbd7 {[%clk 0:03:00]} 4. h3 {[%clk 0:03:00]}  e5 {[%clk 0:02:59]} 5. Nge2 {[%clk 0:02:59]}  Be7 {[%clk 0:02:57]} 6. Be3 {[%clk 0:02:58]}  c6 {[%clk 0:02:54]} 7. a4 {[%clk 0:02:57]}  a5 {[%clk 0:02:54]} 8. g4 {[%clk 0:02:56]}  h6 {[%clk 0:02:52]} 9. Bg2 {[%clk 0:02:56]}  Qc7 {[%clk 0:02:46]} 10. Ng3 {[%clk 0:02:52]}  exd4 {[%clk 0:02:43]} 11. Bxd4 {[%clk 0:02:51]}  Nc5 {[%clk 0:02:43]} 12. Qd2 {[%clk 0:02:31]}  Be6 {[%clk 0:02:22]} 13. O-O {[%clk 0:02:12]}  Rd8 {[%clk 0:01:58]} 14. f4 {[%clk 0:02:10]}  Bc4 {[%clk 0:01:41]} 15. Rfe1 {[%clk 0:01:57]}  Ne6 {[%clk 0:01:37]} 16. Be3 {[%clk 0:01:42]}  d5 {[%clk 0:01:35]} 17. Qf2 {[%clk 0:01:35]}  d4 {[%clk 0:01:29]} 18. Bxd4 {[%clk 0:01:13]}  Nxd4 {[%clk 0:01:17]} 19. e5 {[%clk 0:01:02]}  Ng8 {[%clk 0:01:03]} 20. f5 {[%clk 0:01:01]}  Bh4 {[%clk 0:00:58]} 21. Kh2 {[%clk 0:00:56]}  Ne7 {[%clk 0:00:55]} 22. Rad1 {[%clk 0:00:53]}  c5 {[%clk 0:00:48]} 23. f6 {[%clk 0:00:42]}  Ng6 {[%clk 0:00:25]} 24. fxg7 {[%clk 0:00:41]}  Rg8 {[%clk 0:00:24]} 25. Nce4 {[%clk 0:00:39]}  Rxg7 {[%clk 0:00:20]} 26. Nd6+ {[%clk 0:00:37]}  Kf8 {[%clk 0:00:17]} 27. Nxc4 {[%clk 0:00:37]}  Kg8 {[%clk 0:00:17]} 28. c3 {[%clk 0:00:33]}  Ne6 {[%clk 0:00:16]} 29. Rxd8+ {[%clk 0:00:29]}  Qxd8 {[%clk 0:00:16]} 30. Qf3 {[%clk 0:00:25]}  Ng5 {[%clk 0:00:12]} 31. Qe3 {[%clk 0:00:22]}  Qc7 {[%clk 0:00:10]} 32. Rd1 {[%clk 0:00:19]}  Kh7 {[%clk 0:00:09]} 33. Nf5 {[%clk 0:00:19]}  Rg8 {[%clk 0:00:06]} 34. Ncd6 {[%clk 0:00:18]}  Rd8 {[%clk 0:00:05]} 35. Be4 {[%clk 0:00:17]}  Nxe4 {[%clk 0:00:05]} 36. Qxe4 {[%clk 0:00:18]}  Bg5 {[%clk 0:00:05]} 37. Rf1 {[%clk 0:00:11]}  Qd7 {[%clk 0:00:04]} 38. h4 {[%clk 0:00:11]}  Be7 {[%clk 0:00:03]} 39. Nxe7 {[%clk 0:00:09]}  Qxe7 {[%clk 0:00:03]} 40. h5 {[%clk 0:00:10]}  Rxd6 {[%clk 0:00:02]} 41. hxg6+ {[%clk 0:00:09]}  Rxg6 {[%clk 0:00:02]} 42. Qf5 {[%clk 0:00:07]}  Kg7 {[%clk 0:00:01]} 43. Rf4 {[%clk 0:00:06]}  Qe6 {[%clk 0:00:01]} 44. Qxe6 {[%clk 0:00:05]}  Rxe6 {[%clk 0:00:02]} 45. Re4 {[%clk 0:00:05]}  Kg6 {[%clk 0:00:02]} 46. Kg3 {[%clk 0:00:06]}  Kg5 {[%clk 0:00:03]} 47. Re2 {[%clk 0:00:03]}  b6 {[%clk 0:00:03]} 48. Rf2 {[%clk 0:00:03]}  Re7 {[%clk 0:00:03]} 49. Rf5+ {[%clk 0:00:03]}  Kg6 {[%clk 0:00:03]} 50. Rf6+ {[%clk 0:00:03]}  Kg7 {[%clk 0:00:03]} 51. Rxb6 {[%clk 0:00:04]}  Rxe5 {[%clk 0:00:03]} 52. Rb5 {[%clk 0:00:04]}  Re2 {[%clk 0:00:03]} 53. Kf3 {[%clk 0:00:03]}  Rc2 {[%clk 0:00:03]} 54. Ke4 {[%clk 0:00:03]}  Rg2 {[%clk 0:00:02]} 55. Kd5 {[%clk 0:00:03]}  Rxg4 {[%clk 0:00:02]} 56. Rxc5 {[%clk 0:00:03]}  Rxa4 {[%clk 0:00:02]} 57. Rc6 {[%clk 0:00:01]}  Ra2 {[%clk 0:00:03]} 58. b4 {[%clk 0:00:01]}  axb4 {[%clk 0:00:02]} 59. cxb4 {[%clk 0:00:02]}  Rb2 {[%clk 0:00:02]} 60. Rc4 {[%clk 0:00:01]}  Kg6 {[%clk 0:00:02]} 61. Kc5 {[%clk 0:00:02]}  h5 {[%clk 0:00:02]} 62. b5 {[%clk 0:00:03]}  f5 {[%clk 0:00:02]} 63. b6 {[%clk 0:00:03]}  Rxb6 {[%clk 0:00:01]} 64. Kxb6 {[%clk 0:00:03]}  Kg5 {[%clk 0:00:02]} 65. Kc5 {[%clk 0:00:03]}  f4 {[%clk 0:00:03]} 66. Kd5 {[%clk 0:00:03]}  Kg4 {[%clk 0:00:04]} 67. Ke4 {[%clk 0:00:03]}  f3 {[%clk 0:00:04]} 68. Ke3+ {[%clk 0:00:02]}  Kg3 {[%clk 0:00:04]} 69. Rf4 {[%clk 0:00:03]}  h4 {[%clk 0:00:03]} 70. Rxf3+ {[%clk 0:00:03]}  Kg2 {[%clk 0:00:04]} 71. Rf2+ {[%clk 0:00:04]}  Kg1 {[%clk 0:00:04]} 72. Kf3 {[%clk 0:00:03]}  h3 {[%clk 0:00:04]} 73. Kg3 {[%clk 0:00:02]}  Kh1 {[%clk 0:00:03]} 74. Rf1# {[%clk 0:00:02]} 1-0


[Site "https://www.chess.com"]

[Event "Titled Tuesday Blitz August 1 Late 2023"]
[White "Vaglio Munoz, Jaime"]
[Black "Burke, Paul"]
[WhiteFideId "6500145"]
[BlackFideId "2605767"]
[WhiteElo "2267"]
[BlackElo "1908"]
[Result "1-0"]
[Round "10"]
[TimeControl "180+1"]
[Date "2023.08.01"]
[WhiteClock "0:02:19"]
[BlackClock "0:02:11"]
[Board "105"]

1. Nf3 {[%clk 0:03:00]}  a6 {[%clk 0:02:59]} 2. c4 {[%clk 0:03:00]}  d6 {[%clk 0:03:00]} 3. b3 {[%clk 0:03:00]}  g6 {[%clk 0:03:00]} 4. Bb2 {[%clk 0:03:00]}  Nf6 {[%clk 0:03:00]} 5. g3 {[%clk 0:02:57]}  Bg7 {[%clk 0:03:00]} 6. d4 {[%clk 0:02:57]}  O-O {[%clk 0:02:59]} 7. Bg2 {[%clk 0:02:57]}  Nbd7 {[%clk 0:02:59]} 8. O-O {[%clk 0:02:57]}  Re8 {[%clk 0:02:59]} 9. Re1 {[%clk 0:02:57]}  e5 {[%clk 0:02:52]} 10. dxe5 {[%clk 0:02:54]}  dxe5 {[%clk 0:02:52]} 11. Nc3 {[%clk 0:02:44]}  Qe7 {[%clk 0:02:43]} 12. Nd5 {[%clk 0:02:42]}  Nxd5 {[%clk 0:02:42]} 13. cxd5 {[%clk 0:02:42]}  h6 {[%clk 0:02:36]} 14. e4 {[%clk 0:02:41]}  f5 {[%clk 0:02:31]} 15. Nh4 {[%clk 0:02:37]}  Kh7 {[%clk 0:02:30]} 16. exf5 {[%clk 0:02:35]}  gxf5 {[%clk 0:02:29]} 17. Nxf5 {[%clk 0:02:34]}  Qf6 {[%clk 0:02:25]} 18. Nxg7 {[%clk 0:02:30]}  Kxg7 {[%clk 0:02:24]} 19. f4 {[%clk 0:02:30]}  Rf8 {[%clk 0:02:22]} 20. Rc1 {[%clk 0:02:28]}  Qb6+ {[%clk 0:02:20]} 21. Kh1 {[%clk 0:02:26]}  Qd6 {[%clk 0:02:11]} 22. Qh5 {[%clk 0:02:19]} 1-0


[Site "https://www.chess.com"]

[Event "Titled Tuesday Blitz August 1 Late 2023"]
[White "Miguelitro69"]
[Black "Papp, Petra"]
[BlackFideId "739049"]
[WhiteElo "2280"]
[BlackElo "2415"]
[Result "0-1"]
[Round "10"]
[TimeControl "180+1"]
[Date "2023.08.01"]
[WhiteClock "0:00:17"]
[BlackClock "0:00:22"]
[Board "107"]

1. e4 {[%clk 0:03:00]}  c5 {[%clk 0:02:37]} 2. Nf3 {[%clk 0:02:59]}  d6 {[%clk 0:02:36]} 3. d4 {[%clk 0:02:59]}  cxd4 {[%clk 0:02:37]} 4. Nxd4 {[%clk 0:03:00]}  Nf6 {[%clk 0:02:37]} 5. Nc3 {[%clk 0:03:00]}  a6 {[%clk 0:02:38]} 6. Bc4 {[%clk 0:03:00]}  e6 {[%clk 0:02:38]} 7. Bb3 {[%clk 0:03:00]}  Nbd7 {[%clk 0:02:36]} 8. Be3 {[%clk 0:03:00]}  Nc5 {[%clk 0:02:37]} 9. f3 {[%clk 0:03:00]}  b5 {[%clk 0:02:33]} 10. Qd2 {[%clk 0:02:57]}  Qc7 {[%clk 0:02:31]} 11. g4 {[%clk 0:02:55]}  Be7 {[%clk 0:02:27]} 12. h4 {[%clk 0:02:55]}  Nfd7 {[%clk 0:02:19]} 13. O-O-O {[%clk 0:02:53]}  Nb6 {[%clk 0:02:07]} 14. Kb1 {[%clk 0:02:52]}  Bd7 {[%clk 0:02:06]} 15. Qh2 {[%clk 0:02:46]}  Rc8 {[%clk 0:02:00]} 16. g5 {[%clk 0:02:42]}  b4 {[%clk 0:01:54]} 17. Nce2 {[%clk 0:02:28]}  a5 {[%clk 0:01:45]} 18. c3 {[%clk 0:01:57]}  a4 {[%clk 0:01:29]} 19. Bc2 {[%clk 0:01:56]}  Nc4 {[%clk 0:01:22]} 20. Bc1 {[%clk 0:01:54]}  Qb6 {[%clk 0:00:53]} 21. b3 {[%clk 0:01:26]}  axb3 {[%clk 0:00:49]} 22. Nxb3 {[%clk 0:01:25]}  Ba4 {[%clk 0:00:35]} 23. Ned4 {[%clk 0:01:16]}  bxc3 {[%clk 0:00:25]} 24. Ka1 {[%clk 0:00:56]}  Ra8 {[%clk 0:00:25]} 25. Nxc5 {[%clk 0:00:43]}  Qxc5 {[%clk 0:00:25]} 26. Bxa4+ {[%clk 0:00:43]}  Rxa4 {[%clk 0:00:24]} 27. Nb3 {[%clk 0:00:42]}  Qb4 {[%clk 0:00:23]} 28. Qc2 {[%clk 0:00:38]}  O-O {[%clk 0:00:23]} 29. h5 {[%clk 0:00:38]}  Rfa8 {[%clk 0:00:23]} 30. g6 {[%clk 0:00:17]}  Rxa2+ {[%clk 0:00:21]} 31. Qxa2 {[%clk 0:00:16]}  Rxa2+ {[%clk 0:00:21]} 32. Kxa2 {[%clk 0:00:17]}  Qa4+ {[%clk 0:00:22]} 33. Kb1 {[%clk 0:00:17]}  Qxb3+ {[%clk 0:00:21]} 34. Ka1 {[%clk 0:00:17]}  Qa4+ {[%clk 0:00:22]} 35. Kb1 {[%clk 0:00:17]}  c2# {[%clk 0:00:22]} 0-1


[Site "https://www.chess.com"]

[Event "Titled Tuesday Blitz August 1 Late 2023"]
[White "Joubert, Dantelle"]
[Black "Jahnz, Fabian"]
[WhiteFideId "14310813"]
[BlackFideId "4653300"]
[WhiteElo "2055"]
[BlackElo "2311"]
[Result "1-0"]
[Round "10"]
[TimeControl "180+1"]
[Date "2023.08.01"]
[WhiteClock "0:00:52"]
[BlackClock "0:00:17"]
[Board "111"]

1. e4 {[%clk 0:03:00]}  c6 {[%clk 0:02:59]} 2. d4 {[%clk 0:02:59]}  d5 {[%clk 0:02:59]} 3. e5 {[%clk 0:02:59]}  Bf5 {[%clk 0:02:59]} 4. h4 {[%clk 0:02:59]}  Qc7 {[%clk 0:02:59]} 5. g4 {[%clk 0:02:55]}  Bd7 {[%clk 0:02:59]} 6. c4 {[%clk 0:02:53]}  e6 {[%clk 0:02:55]} 7. Nc3 {[%clk 0:02:53]}  Ne7 {[%clk 0:02:52]} 8. cxd5 {[%clk 0:02:52]}  exd5 {[%clk 0:02:48]} 9. Bf4 {[%clk 0:02:49]}  Be6 {[%clk 0:02:46]} 10. Be2 {[%clk 0:02:35]}  h5 {[%clk 0:02:44]} 11. gxh5 {[%clk 0:02:31]}  Nf5 {[%clk 0:02:38]} 12. Qd2 {[%clk 0:02:23]}  Qb6 {[%clk 0:02:35]} 13. O-O-O {[%clk 0:02:18]}  Bb4 {[%clk 0:02:32]} 14. h6 {[%clk 0:02:03]}  gxh6 {[%clk 0:02:24]} 15. Bg4 {[%clk 0:01:54]}  h5 {[%clk 0:02:17]} 16. Bh3 {[%clk 0:01:48]}  Nd7 {[%clk 0:02:10]} 17. Bg5 {[%clk 0:01:47]}  a5 {[%clk 0:01:56]} 18. Nf3 {[%clk 0:01:46]}  a4 {[%clk 0:01:54]} 19. a3 {[%clk 0:01:41]}  Be7 {[%clk 0:01:53]} 20. Qf4 {[%clk 0:01:34]}  Bxg5 {[%clk 0:01:33]} 21. hxg5 {[%clk 0:01:29]}  Ng7 {[%clk 0:01:22]} 22. g6 {[%clk 0:01:24]}  fxg6 {[%clk 0:01:05]} 23. Qg5 {[%clk 0:01:08]}  Bf7 {[%clk 0:00:32]} 24. e6 {[%clk 0:01:07]}  Nxe6 {[%clk 0:00:32]} 25. Bxe6 {[%clk 0:01:01]}  Bxe6 {[%clk 0:00:32]} 26. Qxg6+ {[%clk 0:01:01]}  Bf7 {[%clk 0:00:24]} 27. Rde1+ {[%clk 0:01:00]}  Kf8 {[%clk 0:00:25]} 28. Qd6+ {[%clk 0:01:00]}  Kg8 {[%clk 0:00:22]} 29. Rhg1+ {[%clk 0:00:57]}  Kh7 {[%clk 0:00:20]} 30. Ng5+ {[%clk 0:00:56]}  Kg7 {[%clk 0:00:17]} 31. Nxf7+ {[%clk 0:00:55]}  Kxf7 {[%clk 0:00:17]} 32. Re7+ {[%clk 0:00:52]} 1-0


[Site "https://www.chess.com"]

[Event "Titled Tuesday Blitz August 1 Late 2023"]
[White "Vargas, Mauricio"]
[Black "Simonovic, Miroslav"]
[WhiteFideId "4404572"]
[BlackFideId "919152"]
[WhiteElo "1884"]
[BlackElo "2285"]
[Result "0-1"]
[Round "10"]
[TimeControl "180+1"]
[Date "2023.08.01"]
[WhiteClock "0:01:09"]
[BlackClock "0:01:29"]
[Board "113"]

1. e4 {[%clk 0:02:59]}  c5 {[%clk 0:03:00]} 2. Nc3 {[%clk 0:02:59]}  Nc6 {[%clk 0:03:00]} 3. f4 {[%clk 0:02:59]}  e5 {[%clk 0:03:01]} 4. Nf3 {[%clk 0:03:00]}  exf4 {[%clk 0:03:01]} 5. Bc4 {[%clk 0:02:59]}  g6 {[%clk 0:03:00]} 6. d3 {[%clk 0:02:58]}  Bg7 {[%clk 0:02:59]} 7. Bxf4 {[%clk 0:02:57]}  Nge7 {[%clk 0:03:00]} 8. Nb5 {[%clk 0:02:49]}  O-O {[%clk 0:02:58]} 9. Nc7 {[%clk 0:02:47]}  Rb8 {[%clk 0:02:55]} 10. Nd5 {[%clk 0:02:30]}  d6 {[%clk 0:02:50]} 11. O-O {[%clk 0:02:24]}  b5 {[%clk 0:02:46]} 12. Bb3 {[%clk 0:02:21]}  Bxb2 {[%clk 0:02:43]} 13. Rb1 {[%clk 0:02:20]}  Bg7 {[%clk 0:02:43]} 14. Qe1 {[%clk 0:02:18]}  Be6 {[%clk 0:02:27]} 15. Qh4 {[%clk 0:02:15]}  Bxd5 {[%clk 0:02:11]} 16. exd5 {[%clk 0:02:12]}  Nd4 {[%clk 0:02:10]} 17. Rbe1 {[%clk 0:01:56]}  Nxf3+ {[%clk 0:01:53]} 18. Rxf3 {[%clk 0:01:55]}  Nf5 {[%clk 0:01:54]} 19. Qh3 {[%clk 0:01:52]}  h5 {[%clk 0:01:46]} 20. g4 {[%clk 0:01:49]}  hxg4 {[%clk 0:01:45]} 21. Qxg4 {[%clk 0:01:49]}  Qf6 {[%clk 0:01:32]} 22. Bg5 {[%clk 0:01:36]}  Qd4+ {[%clk 0:01:31]} 23. Kg2 {[%clk 0:01:32]}  Qxg4+ {[%clk 0:01:30]} 24. Kh1 {[%clk 0:01:09]}  Qxf3+ {[%clk 0:01:29]} 0-1


[Site "https://www.chess.com"]

[Event "Titled Tuesday Blitz August 1 Late 2023"]
[White "Zhigalko, Sergei"]
[Black "Grischuk, Alexander"]
[WhiteFideId "13502956"]
[BlackFideId "4126025"]
[WhiteElo "2930"]
[BlackElo "3020"]
[Result "0-1"]
[Round "11"]
[TimeControl "180+1"]
[Date "2023.08.01"]
[WhiteClock "0:00:02"]
[BlackClock "0:00:10"]
[Board "2"]

1. e4 {[%clk 0:03:00]}  e5 {[%clk 0:02:59]} 2. Nf3 {[%clk 0:03:00]}  Nc6 {[%clk 0:02:59]} 3. Bc4 {[%clk 0:03:00]}  Bc5 {[%clk 0:03:00]} 4. b4 {[%clk 0:03:01]}  Be7 {[%clk 0:03:00]} 5. b5 {[%clk 0:02:54]}  Na5 {[%clk 0:03:00]} 6. Be2 {[%clk 0:02:54]}  d5 {[%clk 0:03:00]} 7. Nxe5 {[%clk 0:02:23]}  dxe4 {[%clk 0:02:55]} 8. Bb2 {[%clk 0:01:49]}  Nf6 {[%clk 0:02:52]} 9. Bc3 {[%clk 0:01:33]}  c6 {[%clk 0:02:37]} 10. a4 {[%clk 0:01:22]}  O-O {[%clk 0:02:23]} 11. O-O {[%clk 0:01:22]}  Nd5 {[%clk 0:02:20]} 12. bxc6 {[%clk 0:00:54]}  Nxc6 {[%clk 0:02:03]} 13. Nxc6 {[%clk 0:00:49]}  bxc6 {[%clk 0:02:04]} 14. Bc4 {[%clk 0:00:36]}  Be6 {[%clk 0:01:57]} 15. Bxd5 {[%clk 0:00:34]}  cxd5 {[%clk 0:01:42]} 16. Bd4 {[%clk 0:00:30]}  Bf6 {[%clk 0:01:42]} 17. Bxf6 {[%clk 0:00:26]}  Qxf6 {[%clk 0:01:43]} 18. Nc3 {[%clk 0:00:26]}  Rac8 {[%clk 0:01:26]} 19. Rb1 {[%clk 0:00:25]}  Qg6 {[%clk 0:01:23]} 20. f4 {[%clk 0:00:08]}  exf3 {[%clk 0:01:07]} 21. Qxf3 {[%clk 0:00:04]}  Qxc2 {[%clk 0:01:07]} 22. Nxd5 {[%clk 0:00:04]}  Qc5+ {[%clk 0:00:56]} 23. Ne3 {[%clk 0:00:04]}  Qd4 {[%clk 0:00:57]} 24. Rf2 {[%clk 0:00:02]}  Qxa4 {[%clk 0:00:55]} 25. Nf5 {[%clk 0:00:02]}  Bxf5 {[%clk 0:00:44]} 26. Qxf5 {[%clk 0:00:03]}  Qd4 {[%clk 0:00:44]} 27. h3 {[%clk 0:00:02]}  g6 {[%clk 0:00:35]} 28. Qf4 {[%clk 0:00:03]}  Qxf4 {[%clk 0:00:23]} 29. Rxf4 {[%clk 0:00:03]}  Rc7 {[%clk 0:00:24]} 30. Ra1 {[%clk 0:00:03]}  Rd8 {[%clk 0:00:24]} 31. Rfa4 {[%clk 0:00:03]}  Rxd2 {[%clk 0:00:22]} 32. R4a2 {[%clk 0:00:01]}  Rxa2 {[%clk 0:00:18]} 33. Rxa2 {[%clk 0:00:02]}  h5 {[%clk 0:00:18]} 34. Kh2 {[%clk 0:00:02]}  Kf8 {[%clk 0:00:18]} 35. Kg3 {[%clk 0:00:02]}  Ke7 {[%clk 0:00:18]} 36. Kf4 {[%clk 0:00:03]}  Kd8 {[%clk 0:00:17]} 37. Kg5 {[%clk 0:00:02]}  Rd7 {[%clk 0:00:17]} 38. g4 {[%clk 0:00:02]}  hxg4 {[%clk 0:00:16]} 39. hxg4 {[%clk 0:00:03]}  Kc8 {[%clk 0:00:17]} 40. Kf6 {[%clk 0:00:04]}  Kb7 {[%clk 0:00:17]} 41. g5 {[%clk 0:00:03]}  a6 {[%clk 0:00:16]} 42. Ra1 {[%clk 0:00:03]}  Kb6 {[%clk 0:00:16]} 43. Rb1+ {[%clk 0:00:04]}  Kc5 {[%clk 0:00:16]} 44. Rc1+ {[%clk 0:00:04]}  Kb4 {[%clk 0:00:16]} 45. Rb1+ {[%clk 0:00:04]}  Kc3 {[%clk 0:00:16]} 46. Ra1 {[%clk 0:00:04]}  Ra7 {[%clk 0:00:16]} 47. Ra3+ {[%clk 0:00:01]}  Kb4 {[%clk 0:00:15]} 48. Re3 {[%clk 0:00:01]}  a5 {[%clk 0:00:16]} 49. Re4+ {[%clk 0:00:02]}  Kc5 {[%clk 0:00:10]} 50. Re5+ {[%clk 0:00:02]}  Kd4 {[%clk 0:00:10]} 51. Re7 {[%clk 0:00:02]}  Rxe7 {[%clk 0:00:10]} 52. Kxe7 {[%clk 0:00:03]}  Ke5 {[%clk 0:00:09]} 53. Kxf7 {[%clk 0:00:04]}  Kf5 {[%clk 0:00:10]} 54. Kg7 {[%clk 0:00:02]}  Kxg5 {[%clk 0:00:10]} 0-1


[Site "https://www.chess.com"]

[Event "Titled Tuesday Blitz August 1 Late 2023"]
[White "Bortnyk, Olexandr"]
[Black "Aravindh, Chithambaram VR."]
[WhiteFideId "14120828"]
[BlackFideId "5072786"]
[WhiteElo "3076"]
[BlackElo "2900"]
[Result "1-0"]
[Round "11"]
[TimeControl "180+1"]
[Date "2023.08.01"]
[WhiteClock "0:00:02"]
[BlackClock "0:00:00"]
[Board "4"]

1. d4 {[%clk 0:03:00]}  Nf6 {[%clk 0:02:56]} 2. Nc3 {[%clk 0:03:00]}  d5 {[%clk 0:02:55]} 3. Bf4 {[%clk 0:02:59]}  e6 {[%clk 0:02:51]} 4. Nb5 {[%clk 0:02:59]}  Na6 {[%clk 0:02:50]} 5. e3 {[%clk 0:02:59]}  Be7 {[%clk 0:02:48]} 6. Nf3 {[%clk 0:02:58]}  O-O {[%clk 0:02:48]} 7. h4 {[%clk 0:02:59]}  c6 {[%clk 0:02:48]} 8. Nc3 {[%clk 0:02:58]}  c5 {[%clk 0:02:44]} 9. h5 {[%clk 0:02:41]}  h6 {[%clk 0:02:36]} 10. Bxa6 {[%clk 0:02:23]}  bxa6 {[%clk 0:02:34]} 11. g4 {[%clk 0:02:24]}  Nxg4 {[%clk 0:02:09]} 12. Rg1 {[%clk 0:02:22]}  f5 {[%clk 0:02:08]} 13. Ne5 {[%clk 0:02:22]}  Bf6 {[%clk 0:02:04]} 14. Qf3 {[%clk 0:01:51]}  Qe8 {[%clk 0:01:31]} 15. O-O-O {[%clk 0:01:42]}  Qxh5 {[%clk 0:01:04]} 16. Nxd5 {[%clk 0:01:36]}  exd5 {[%clk 0:00:23]} 17. Qxd5+ {[%clk 0:01:37]}  Be6 {[%clk 0:00:19]} 18. Qxe6+ {[%clk 0:01:36]}  Kh8 {[%clk 0:00:19]} 19. Rh1 {[%clk 0:00:58]}  Qe8 {[%clk 0:00:19]} 20. Qxe8 {[%clk 0:00:58]}  Rfxe8 {[%clk 0:00:19]} 21. Nxg4 {[%clk 0:00:57]}  fxg4 {[%clk 0:00:20]} 22. dxc5 {[%clk 0:00:57]}  Rac8 {[%clk 0:00:18]} 23. Rd5 {[%clk 0:00:50]}  a5 {[%clk 0:00:14]} 24. Rg1 {[%clk 0:00:39]}  Re4 {[%clk 0:00:05]} 25. Rxg4 {[%clk 0:00:28]}  g5 {[%clk 0:00:04]} 26. Bxg5 {[%clk 0:00:16]}  Bxb2+ {[%clk 0:00:04]} 27. Kxb2 {[%clk 0:00:14]}  Rxg4 {[%clk 0:00:05]} 28. Bxh6 {[%clk 0:00:14]}  Rc4 {[%clk 0:00:04]} 29. Rd7 {[%clk 0:00:07]}  R4xc5 {[%clk 0:00:02]} 30. c3 {[%clk 0:00:03]}  Kg8 {[%clk 0:00:02]} 31. Bg7 {[%clk 0:00:02]}  R5c7 {[%clk 0:00:02]} 32. Rxc7 {[%clk 0:00:03]}  Rxc7 {[%clk 0:00:03]} 33. Be5 {[%clk 0:00:02]}  Rb7+ {[%clk 0:00:03]} 34. Ka3 {[%clk 0:00:02]}  Kf7 {[%clk 0:00:04]} 35. f4 {[%clk 0:00:02]}  Ke6 {[%clk 0:00:05]} 36. Ka4 {[%clk 0:00:02]}  Kd5 {[%clk 0:00:04]} 37. Kxa5 {[%clk 0:00:02]}  Rb1 {[%clk 0:00:04]} 38. a4 {[%clk 0:00:02]}  Kc6 {[%clk 0:00:00]} 39. Bd4 {[%clk 0:00:02]} 1-0


[Site "https://www.chess.com"]

[Event "Titled Tuesday Blitz August 1 Late 2023"]
[White "Krzyzanowski, Marcin"]
[Black "Matlakov, Maxim"]
[WhiteFideId "1132199"]
[BlackFideId "4168003"]
[WhiteElo "2800"]
[BlackElo "2982"]
[Result "0-1"]
[Round "11"]
[TimeControl "180+1"]
[Date "2023.08.01"]
[WhiteClock "0:00:02"]
[BlackClock "0:00:08"]
[Board "6"]

1. e4 {[%clk 0:03:00]}  e5 {[%clk 0:02:57]} 2. Nf3 {[%clk 0:03:00]}  Nc6 {[%clk 0:02:57]} 3. Bb5 {[%clk 0:03:00]}  a6 {[%clk 0:02:58]} 4. Ba4 {[%clk 0:03:00]}  Nf6 {[%clk 0:02:58]} 5. Nc3 {[%clk 0:03:01]}  Bb4 {[%clk 0:02:57]} 6. Nd5 {[%clk 0:02:56]}  Nxd5 {[%clk 0:02:56]} 7. exd5 {[%clk 0:02:56]}  Nd4 {[%clk 0:02:57]} 8. c3 {[%clk 0:02:46]}  Nxf3+ {[%clk 0:02:54]} 9. Qxf3 {[%clk 0:02:47]}  Bc5 {[%clk 0:02:48]} 10. O-O {[%clk 0:02:42]}  O-O {[%clk 0:02:48]} 11. Bc2 {[%clk 0:02:25]}  d6 {[%clk 0:02:45]} 12. d4 {[%clk 0:02:16]}  exd4 {[%clk 0:02:45]} 13. cxd4 {[%clk 0:02:17]}  Bb6 {[%clk 0:02:42]} 14. Rd1 {[%clk 0:02:10]}  Qh4 {[%clk 0:02:36]} 15. h3 {[%clk 0:02:00]}  Re8 {[%clk 0:02:22]} 16. Be3 {[%clk 0:01:59]}  Bd7 {[%clk 0:02:20]} 17. a4 {[%clk 0:01:58]}  a5 {[%clk 0:02:20]} 18. Rac1 {[%clk 0:01:54]}  Re7 {[%clk 0:02:15]} 19. b3 {[%clk 0:01:53]}  Rae8 {[%clk 0:02:15]} 20. Kh2 {[%clk 0:01:42]}  h6 {[%clk 0:02:13]} 21. Bb1 {[%clk 0:01:37]}  Rf8 {[%clk 0:02:03]} 22. Re1 {[%clk 0:01:26]}  f5 {[%clk 0:01:59]} 23. g3 {[%clk 0:00:56]}  Qf6 {[%clk 0:01:59]} 24. h4 {[%clk 0:00:53]}  g5 {[%clk 0:01:40]} 25. Bd2 {[%clk 0:00:46]}  Rg7 {[%clk 0:01:34]} 26. h5 {[%clk 0:00:36]}  Rgf7 {[%clk 0:01:17]} 27. Bc3 {[%clk 0:00:34]}  g4 {[%clk 0:01:06]} 28. Qf4 {[%clk 0:00:34]}  Qg5 {[%clk 0:01:06]} 29. Bd2 {[%clk 0:00:31]}  Qxh5+ {[%clk 0:00:46]} 30. Kg2 {[%clk 0:00:32]}  Qh3+ {[%clk 0:00:47]} 31. Kg1 {[%clk 0:00:32]}  Rh7 {[%clk 0:00:45]} 32. Re6 {[%clk 0:00:29]}  Bxe6 {[%clk 0:00:40]} 33. dxe6 {[%clk 0:00:30]}  Qh5 {[%clk 0:00:37]} 34. d5 {[%clk 0:00:29]}  Qg6 {[%clk 0:00:35]} 35. Re1 {[%clk 0:00:29]}  Qf6 {[%clk 0:00:28]} 36. Qc4 {[%clk 0:00:25]}  Bd4 {[%clk 0:00:28]} 37. Bxa5 {[%clk 0:00:16]}  h5 {[%clk 0:00:28]} 38. Rd1 {[%clk 0:00:16]}  Be5 {[%clk 0:00:21]} 39. Re1 {[%clk 0:00:14]}  h4 {[%clk 0:00:21]} 40. Rxe5 {[%clk 0:00:14]}  dxe5 {[%clk 0:00:17]} 41. d6 {[%clk 0:00:14]}  Kh8 {[%clk 0:00:10]} 42. e7 {[%clk 0:00:15]}  Rxe7 {[%clk 0:00:10]} 43. dxe7 {[%clk 0:00:15]}  Qxe7 {[%clk 0:00:11]} 44. Qxc7 {[%clk 0:00:14]}  Qxc7 {[%clk 0:00:10]} 45. Bxc7 {[%clk 0:00:15]}  e4 {[%clk 0:00:03]} 46. Be5+ {[%clk 0:00:14]}  Kh7 {[%clk 0:00:04]} 47. b4 {[%clk 0:00:13]}  Rc8 {[%clk 0:00:04]} 48. Ba2 {[%clk 0:00:12]}  Rc1+ {[%clk 0:00:04]} 49. Kh2 {[%clk 0:00:12]}  Rc2 {[%clk 0:00:04]} 50. Kg1 {[%clk 0:00:11]}  Rxa2 {[%clk 0:00:03]} 51. a5 {[%clk 0:00:11]}  Ra4 {[%clk 0:00:03]} 52. Bd6 {[%clk 0:00:11]}  h3 {[%clk 0:00:04]} 53. Bc5 {[%clk 0:00:10]}  Kg6 {[%clk 0:00:03]} 54. Kh2 {[%clk 0:00:10]}  Kf7 {[%clk 0:00:04]} 55. Bd6 {[%clk 0:00:09]}  Ke6 {[%clk 0:00:04]} 56. Bc5 {[%clk 0:00:10]}  Kd5 {[%clk 0:00:05]} 57. Be7 {[%clk 0:00:09]}  Kc6 {[%clk 0:00:05]} 58. Bf8 {[%clk 0:00:08]}  Kb5 {[%clk 0:00:05]} 59. Bd6 {[%clk 0:00:04]}  Rxb4 {[%clk 0:00:05]} 60. Bxb4 {[%clk 0:00:03]}  Kxb4 {[%clk 0:00:06]} 61. a6 {[%clk 0:00:02]}  bxa6 {[%clk 0:00:06]} 62. f4 {[%clk 0:00:03]}  exf3 {[%clk 0:00:06]} 63. Kg1 {[%clk 0:00:03]}  a5 {[%clk 0:00:06]} 64. Kf2 {[%clk 0:00:03]}  a4 {[%clk 0:00:07]} 65. Ke3 {[%clk 0:00:04]}  a3 {[%clk 0:00:07]} 66. Kf2 {[%clk 0:00:02]}  a2 {[%clk 0:00:07]} 67. Ke3 {[%clk 0:00:02]}  a1=Q {[%clk 0:00:07]} 68. Kf4 {[%clk 0:00:01]}  Qd4+ {[%clk 0:00:07]} 69. Kxf5 {[%clk 0:00:02]}  f2 {[%clk 0:00:07]} 70. Kg5 {[%clk 0:00:02]}  f1=Q {[%clk 0:00:07]} 71. Kh4 {[%clk 0:00:02]}  Qff6+ {[%clk 0:00:07]} 72. Kh5 {[%clk 0:00:02]}  Qde5+ {[%clk 0:00:07]} 73. Kxg4 {[%clk 0:00:02]}  Qef5# {[%clk 0:00:08]} 0-1


[Site "https://www.chess.com"]